Workbook

Sheet BUDGET et REALITéS
D1: BUDGETS 2023-2024 et REALITES 2019-2020-2021-2022-2023
E2: BUDGETS 2023-2024 | G2: EXERCICE 2023-2024 | I2: EXERCICE 2022-2023 | K2: EXERCICE 2021-2022 | M2: EXERCICE 2020-2021 | O2: EXERCICE 2019-2020
E3: Prévisions | G3: Réalités | I3: Réalités | K3: Réalités | M3: Réalités | O3: Réalités
A4: N° analytique | B4: PCMN | C4: Anal | D4: Intitulés | E4: Montants | G4: Montants | K4: Montants | M4: Montants | O4: Montants | Q4: Remarques
D6: RESULTATS = RECETTES - DEPENSES | E6: =E8-E34 -> -5470 | G6: =G8-G34 -> 9399.09 | I6: =I8-I34 -> 5100.56 | K6: =K8-K34 -> -671.59 | M6: =M8-M34 -> 1533.46 | O6: =O8-O34 -> 11077.2
D8: RECETTES | E8: =E10+E19+E24+E27 -> 60170 | G8: =G10+G19+G24+G27 -> 69216.33 | I8: =I10+I19+I24+I27 -> 65666.87 | K8: =K10+K19+K24+K27 -> 57489 | M8: =M10+M19+M24+M27 -> 48604.66 | O8: =O10+O19+O24+O27 -> 56257.79
D10: RECETTES PROPRES A L'ASBL | E10: =SUM(E11:E17) -> 34850 | G10: =SUM(G11:G17) -> 41194 | I10: =SUM(I11:I17) -> 39921.5 | K10: =SUM(K11:K17) -> 33964 | M10: =SUM(M11:M17) -> 23514.84 | O10: =SUM(O11:O17) -> 31934
A11: 700 | B11: 700100 | C11: 700 | D11: Cotisations payées par les cercles | E11: 31600 | G11: 34925 | I11: 35960 | K11: 31620 | M11: 21274 | O11: 30878 | Q11: 29260 des décomptes provisoires + 8%
Q12: Accroissement imprévu du nombre de membres
A13: 70 | C13: 701 | D13: Formation animateurs | G13: 1620 | Q13: Perte 388,78 réalisée contre 0 de prévue
A14: 151 | B14: 704400 | C14: 151 | D14: Inscription juniors pour les interscolaires | E14: 1500 | G14: 2305 | I14: 1887 | K14: 1044 | M14: 740.84 | O14: 1056 | Q14: Perte 619,80 réalisée contre 2200 de prévue
C15: 151 | D15: Sponsoring IE | I15: 150
C16: 151 | D16: Recettes diverses | G16: 274 | I16: 449.5
A17: 150 | B17: 705100 | C17: 150 | D17: Inscription intercercles francophones | E17: 1750 | G17: 2070 | I17: 1475 | K17: 1300 | M17: 1500 | O17: 0 | Q17: Perte de 1030,02 réalisée contre 970 de prévue.
Q18: Augmentation coût inscriptions était correcte
D19: Subsides | E19: =E20+E22 -> 25000 | G19: =G20+G21+G22 -> 26000 | I19: =I20 -> 25000 | K19: =K20 -> 23000 | M19: =M20 -> 25000 | O19: =O20 -> 23190
A20: 800 | B20: 710000 | C20: 800 | D20: Subside de la Fédération Wallonie Bruxelles | E20: 25000 | G20: 15000 | I20: 25000 | K20: 23000 | M20: 25000 | O20: 23190
A21: 802 | C21: 802 | D21: Subside spécial (Avant-saison) | E21: 5000 | G21: 5000
C22: 802 | D22: Subside spécial (Cassette Ministre) | E22: 0 | G22: 6000
D24: Projet "Echecs au féminin" | E24: =E25 -> 0 | G24: =G25 -> 0 | I24: =I25 -> 0 | K24: =K25 -> 0 | M24: =M25 -> 0 | O24: =O25 -> 0
A25: 800 | B25: 710000 | C25: 904 | E25: 0 | G25: 0 | I25: 0 | K25: 0 | M25: 0 | O25: 0
D27: Recettes financières | E27: =E28+E29+E31 -> 320 | G27: =G28+G29+G30+G31 -> 2022.33 | I27: =I28+I29+I31 -> 745.37 | K27: =K28+K29 -> 525 | M27: =M28+M29 -> 89.82 | O27: =O28+O29 -> 1133.79
A28: 900 | B28: 751000 | C28: 900 | D28: Intérêts sur compte épargne réglementé | E28: 0 | G28: 1.33 | I28: 4 | K28: 0 | M28: 53.82 | O28: 28.79
C29: 903 | D29: Recettes imprévues | E29: 0 | G29: 21 | I29: 141.37 | K29: 525 | M29: 36 | O29: 1105
C30: 304 | D30: Don (Junior Féminines) | G30: 100 | Q30: Prix Féminin aux Individuels
A31: 400 | C31: 400 | D31: Formation arbitrage | E31: 320 | G31: 1900 | I31: 600
D34: DEPENSES | E34: =E36+E63+E74+E101+E141+E144 -> 65640 | G34: =G36+G63+G74+G101+G141+G144 -> 59817.24 | I34: =I36+I63+I74+I101+I141+I144 -> 60566.31 | K34: =K36+K63+K74+K101+K141+K144 -> 58160.59 | M34: =M36+M63+M74+M101+M141+M144 -> 47071.2 | O34: =O36+O63+O74+O101+O141+O144 -> 45180.59
D36: FRAIS DE FONCTIONNEMENT DE L'ASBL | E36: =E37+E47+E51+E60 -> 2505 | G36: =G37+G47+G51+G60 -> 3247.83 | I36: =I37+I47+I51+I60 -> 1862.64 | K36: =K37+K47+K51+K60 -> 1249.33 | M36: =M37+M47+M51+M60 -> 542.52 | O36: =O37+O47+O51+O60 -> 2865.18
C37: 902 | D37: Indemnités bénévoles ou Frais remboursés aux membres du CA | E37: =SUM(E38:E45) -> 600 | G37: =SUM(G38:G45) -> 31 | I37: =SUM(I38:I45) -> 200 | K37: =SUM(K38:K45) -> 300 | M37: =SUM(M38:M45) -> 0 | O37: =SUM(O38:O45) -> 1050
A38: 902 | B38: 601000 | C38: 902 | D38: Présidence | K38: 0 | M38: 0 | O38: 0
A39: 902 | B39: 601100 | C39: 902 | D39: Secrétariat | K39: 0 | M39: 0 | O39: 50
A40: 902 | B40: 601200 | C40: 902 | D40: Trésorerie | K40: 100 | M40: 0 | O40: 200
A41: 902 | B41: 601300 | C41: 902 | D41: Direction des tournois | I41: 200 | K41: 200 | M41: 0 | O41: 200
A42: 902 | B42: 601500 | C42: 902 | D42: Autres administrateurs | E42: 400 | G42: 0 | K42: 0 | M42: 0 | O42: 100
A43: 902 | B43: 601600 | C43: 902 | D43: Secrétariat au classement ELO | K43: 0 | M43: 0 | O43: 300
A44: 902 | B44: 601700 | C44: 902 | D44: Jeunesse | K44: 0 | M44: 0 | O44: 200
A45: 902 | B45: 601910 | C45: 902 | D45: Frais de déplacements & d'accueil aux réunions | E45: 200 | G45: 31 | K45: 0 | M45: 0 | O45: 0
C47: 901 | D47: Frais liés aux Assemblées Générales | E47: =SUM(E48:E49) -> 800 | G47: =SUM(G48:G49) -> 880.2 | I47: =SUM(I48:I49) -> 593.1 | K47: =SUM(K48:K49) -> 261.8 | M47: =SUM(M48:M49) -> 163.96 | O47: =SUM(O48:O49) -> 384.82
A48: 901 | B48: 601910 | C48: 901 | D48: Frais de déplacements remboursés aux membres et administrateurs | E48: 600 | G48: 742.2 | I48: 464.6 | K48: 227.8 | M48: 163.96 | O48: 340.6
A49: 901 | B49: 601920 | C49: 901 | D49: Frais d'accueil aux réunions (location/boissons) | E49: 200 | G49: 138 | I49: 128.5 | K49: 34 | M49: 0 | O49: 44.22
C51: 900 | D51: Frais divers liés à la gestion | E51: =SUM(E52:E58) -> 955 | G51: =SUM(G52:G58) -> 2336.63 | I51: =SUM(I52:I58) -> 908.55 | K51: =SUM(K52:K58) -> 581.36 | M51: =SUM(M52:M58) -> 378.56 | O51: =SUM(O52:O58) -> 734.97
A52: 900 | C52: 900 | D52: Fournitures diverses | E52: 200 | G52: 1043.25 | I52: 348.11 | K52: 193.74 | M52: 25.98 | O52: 0 | Q52: Dont set de 10 jeux et caisses transport
A53: 900 | C53: 900 | D53: Publications légales | E53: 155 | G53: 157.42 | I53: 140.24 | K53: 140.24 | M53: 133.58 | O53: 132.98
A54: 900 | B54: 601911 | C54: 900 | D54: Déplacements divers | E54: 200 | G54: 936 | I54: 77.2 | K54: 0 | M54: 31.18 | O54: 68.8 | Q54: Déplacement admin. pour coméptitions
Q55: Certains frais sont des frais 2022-23 rentrés tardivement
B56: 606310 | C56: 900 | D56: Adhésion AIDEF | E56: 100 | G56: 100 | I56: 100 | K56: 100 | M56: 100 | O56: 100
B57: 609000 | C57: 900 | D57: Frais divers | E57: 200 | G57: 0 | I57: 150 | K57: 67.58 | M57: 6.31 | O57: 181.15
B58: 656000 | C58: 900 | D58: Frais bancaires | E58: 100 | G58: 99.96 | I58: 93 | K58: 79.8 | M58: 81.51 | O58: 252.04
A60: 903 | C60: 903 | D60: Dépenses imprévues | E60: =SUM(E61:E61) -> 150 | G60: =SUM(G61:G61) -> 0 | I60: =SUM(I61:I61) -> 160.99 | K60: =SUM(K61:K61) -> 106.17 | M60: =SUM(M61:M61) -> 0 | O60: =SUM(O61:O61) -> 695.39
C61: 903 | D61: Dépenses imprévues | E61: 150 | G61: 0 | I61: 160.99 | K61: 106.17 | M61: 0 | O61: 695.39
D63: Services rendus par l'ASBL | E63: =E64+E67+E72 -> 1670 | G63: =G64+G67+G70+G72 -> 4515.95 | I63: =I64+I67+I72 -> 2027.28 | K63: =K64+K67+K72 -> 619.09 | M63: =M64+M67+M72 -> 808.82 | O63: =O64+O67+O72 -> 757.94
C64: 205 | D64: Assurances | E64: =SUM(E65) -> 850 | G64: =SUM(G65) -> 623.16 | I64: =SUM(I65) -> 773.51 | K64: =SUM(K65) -> 530.09 | M64: 649.74 | O64: =SUM(O65) -> 654.42
A65: 205 | B65: 602000 | C65: 205 | D65: Assurance "Responsabilité Civile" de l'ASBL et de ses membres | E65: 850 | G65: 623.16 | I65: 773.51 | K65: 530.09 | M65: 530.09 | O65: 654.42 | Q65: =+ car nous avons plus de membres
A67: 103 | B67: 606000 | C67: 103 | D67: Site internet et outils informatiques | E67: =SUM(E68:E68) -> 220 | G67: =SUM(G68:G68) -> 552.39 | I67: =SUM(I68:I68) -> 171.4 | K67: =SUM(K68:K68) -> 89 | M67: =SUM(M68:M68) -> 159.08 | O67: =SUM(O68:O68) -> 103.52
C68: 103 | D68: Hébergement site internet; domaine FEFB | E68: 220 | G68: 552.39 | I68: 171.4 | K68: 89 | M68: 159.08 | O68: 103.52 | Q68: Hébergement site payé pour 2 ans
C70: 701 | D70: Formation animateurs | G70: 2108.78
B72: 606200 | C72: 400 | D72: Formation arbitrage | E72: 600 | G72: 1231.62 | I72: 1082.37 | K72: 0 | M72: 0 | O72: 0
D74: COMPETITIONS ORGANISEES PAR L'ASBL | E74: =E75+E83+E96 -> 8120 | G74: =G75+G83+G96 -> 7841.82 | I74: =I75+I83+I96 -> 8228.85 | K74: =K75+K83+K96 -> 4199.69 | M74: =M75+M83+M96 -> 2619.96 | O74: =O75+O83+O96 -> 3109.02
C75: 150 | D75: Intercercles traditionnels | E75: =SUM(E76:E81) -> 2720 | G75: =SUM(G76:G81) -> 3100.02 | I75: =SUM(I76:I81) -> 2654.1 | K75: =SUM(K76:K81) -> 2469.35 | M75: =SUM(M76:M81) -> 1500 | O75: =SUM(O76:O79) -> 1063
A76: 150 | B76: 605300 | C76: 150 | D76: Prix en argent attribués aux vainqueurs | E76: 1500 | G76: 2100 | I76: 1500 | K76: 1500 | M76: 0 | O76: 0
C77: 150 | D77: Dépenses homologations Fide | E77: 250 | G77: 220 | I77: 200 | K77: 181 | M77: 0 | O77: 863
A78: 150 | B78: 605400 | C78: 150 | D78: Subsides attribués aux clubs organisateurs | E78: 400 | G78: 400 | I78: 400 | K78: 400 | M78: 0 | O78: 200
A79: 150 | B79: 605400 | C79: 150 | D79: Frais d'arbitrage (indemnités journalières) et frais de déplacements | E79: 400 | G79: 261.02 | I79: 409.8 | K79: 283.6 | M79: 0 | O79: 0
C80: 150 | D80: Remboursement des inscriptions | K80: 0 | M80: 1500
C81: 150 | D81: Trophées | E81: 170 | G81: 119 | I81: 144.3 | K81: 104.75 | M81: 0
C83: 151 | D83: Inter-écoles | E83: =SUM(E84:E94) -> 3700 | G83: =SUM(G84:G94) -> 2878.8 | I83: =SUM(I84:I94) -> 3902.75 | K83: =SUM(K84:K94) -> 1230.34 | M83: =SUM(M84:M94) -> 819.96 | O83: =SUM(O84:O94) -> 1694.82
A84: 151 | B84: 604160 | C84: 151 | D84: Loyer de la salle (Andenne Arena ou autre) | E84: 700 | G84: 540 | I84: 676.5 | K84: 0 | M84: 0 | O84: 300
C85: 151 | D85: Frais postaux | K85: 0 | M85: 71.02
A86: 151 | B86: 604160 | C86: 151 | D86: Frais de mission et réception
A87: 151 | B87: 604160 | C87: 151 | D87: Boissons et sandwiches | E87: 200 | G87: 220.3 | I87: 525 | K87: 0 | M87: 0 | O87: 200
A88: 151 | C88: 151 | D88: Frais de déplacement | E88: 200 | G88: 0 | K88: 0 | M88: 36.84 | O88: 221.37
A89: 151 | B89: 604160 | C89: 151 | D89: Cadeaux offerts aux bénévoles | E89: 200 | G89: 115.47 | I89: 175.6 | K89: 150.66 | M89: 0
A90: 151 | B90: 604160 | C90: 151 | D90: Trophées et médailles | E90: 950 | G90: 1090.83 | I90: 662.4 | K90: 866.76 | M90: 712.1 | O90: 625.95
A91: 151 | B91: 604160 | C91: 151 | D91: Prix (echiquiers offerts) | E91: 900 | G91: 0 | I91: 1291.8 | Q91: Inclus dans trophées et médailles + Solde année -1
A92: 151 | B92: 604160 | C92: 151 | D92: Fournitures diverses (papiers, bics, etc.) | E92: 150 | G92: 32.2 | I92: 171.45 | K92: 62.92 | M92: 0 | O92: 97.5
C93: 151 | D93: Matières premières pour sandwiches | G93: 280
A94: 151 | B94: 604160 | C94: 151 | D94: Subsides aux organisateurs (provinciaux) | E94: 400 | G94: 600 | I94: 400 | K94: 150 | M94: 0 | O94: 250
C96: 152 | D96: Circuit JEF | E96: =SUM(E97:E99) -> 1700 | G96: =SUM(G97:G99) -> 1863 | I96: =SUM(I97:I99) -> 1672 | K96: =SUM(K97:K99) -> 500 | M96: =SUM(M97:M99) -> 300 | O96: =SUM(O97:O99) -> 351.2
A97: 152 | B97: 604120 | C97: 152 | D97: Subsides aux organisateurs (JEF) | E97: 900 | G97: 900 | I97: 900 | K97: 500 | M97: 300 | O97: 200
C98: 152 | D98: Prix en formation | E98: 300 | G98: 600 | I98: 300
A99: 152 | B99: 604120 | C99: 152 | D99: Trophées | E99: 500 | G99: 363 | I99: 472 | K99: 0 | M99: 0 | O99: 151.2
D101: SUBSIDES ATTRIBUES PAR L'ASBL | E101: =E103+E106+E109+E113+E120+E125+E129 -> 18845 | G101: =G103+G106+G109+G113+G120+G125+G129 -> 16186.8 | I101: =I103+I106+I109+I113+I120+I125+I129 -> 19823.49 | K101: =K103+K106+K109+K113+K120+K125+K129 -> 21488 | M101: =M103+M106+M109+M113+M120+M125+M129 -> 17588.5 | O101: =O103+O106+O109+O113+O120+O125+O129 -> 14411.44
C103: 309 | D103: Ligues provinciales | E103: =SUM(E104) -> 0 | G103: =SUM(G104) -> 0 | I103: =SUM(I104) -> 4809 | K103: =SUM(K104) -> 2919 | M103: =SUM(M104) -> 4278 | O103: =SUM(O104) -> 3864
A104: 309 | B104: 600200 | C104: 309 | D104: Soutien financier par joueur | E104: 0 | G104: 0 | I104: 4809 | K104: 2919 | M104: 4278 | O104: 3864
C106: 300 | D106: Clubs | E106: =SUM(E107:E107) -> 2600 | G106: =SUM(G107:G107) -> 2700 | I106: =SUM(I107:I107) -> 2600 | K106: =SUM(K107:K107) -> 1644.5 | M106: =SUM(M107:M107) -> 997.15 | O106: =SUM(O107:O107) -> 900
A107: 300 | B107: 605900 | C107: 300 | D107: Soutien financier pour l'organisation de compétition "de renommée" | E107: 2600 | G107: 2700 | I107: 2600 | K107: 1644.5 | M107: 997.15 | O107: 900
C109: 155 | D109: Championnat de Belgique des Jeunes (CBJ) | E109: =SUM(E110:E111) -> 2700 | G109: =SUM(G110:G111) -> 790 | I109: =SUM(I110:I111) -> 2058.37 | K109: =SUM(K110:K111) -> 4211 | M109: =SUM(M110:M111) -> 0 | O109: =SUM(O110:O111) -> 50
A110: 155 | B110: 604140 | C110: 155 | D110: Frais forfaitaires remboursés aux coachs (indemnités journalières et frais de déplacement) | E110: 2000 | G110: 790 | I110: 2058.37 | K110: 3107 | M110: 0 | O110: 0 | Q110: Quid en 2024 ??
A111: 155 | B111: 604140 | C111: 155 | D111: Frais de logement des coachs | E111: 700 | G111: 0 | I111: 0 | K111: 1104 | M111: 0 | O111: 50
C113: 302 | D113: Championnat individuel jeunesse FEFB | E113: =SUM(E114:E118) -> 1235 | G113: =SUM(G114:G118) -> 1236 | I113: =SUM(I114:I118) -> 1200 | K113: =SUM(K114:K118) -> 1204 | M113: =SUM(M114:M118) -> 0 | O113: =SUM(O114:O118) -> 709
A114: 302 | B114: 604150 | C114: 302 | D114: Subsides au club organisateur | E114: 600 | G114: 600 | I114: 600 | K114: 750 | M114: 0 | O114: 150
A115: 302 | C115: 302 | D115: Subsides pour arbitrage | E115: 175 | G115: 175 | I115: 163.5
C116: 302 | D116: Dépenses homologation Fide | E116: 60 | G116: 61 | I116: 50 | K116: 54 | M116: 0 | O116: 44
C117: 302 | D117: Prix sous forme de bons de cours | E117: 0 | G117: 0 | I117: 0 | K117: 0 | M117: 0 | O117: 195
A118: 302 | B118: 604150 | C118: 302 | D118: Frais forfaitaires coachs (indemnités journalières et déplacement) | E118: 400 | G118: 400 | I118: 386.5 | K118: 400 | M118: 0 | O118: 320
C120: 310 | D120: Championnat individuel FEFB | E120: =SUM(E121:E123) -> 1960 | G120: =SUM(G121:G123) -> 1955.8 | I120: =SUM(I121:I123) -> 1952 | K120: =K121+K122+K123 -> 1671.5 | M120: =M121+M122+M123 -> 0 | O120: =SUM(O121:O123) -> 0
A121: 310 | B121: 605200 | C121: 310 | D121: Subsides au club organisateur | E121: 1500 | G121: 1500 | I121: 1500 | K121: 1500 | M121: 0 | O121: 0
C122: 310 | D122: Dépenses homologation Fide | E122: 110 | G122: 121 | I122: 110 | K122: 35 | M122: 0
A123: 310 | B123: 605200 | C123: 310 | D123: Frais forfaitaires arbitrage (indemnités et frais de déplacement) | E123: 350 | G123: 334.8 | I123: 342 | K123: 136.5 | M123: 0 | O123: 0
A125: 308 | B125: 605600 | C125: 308 | D125: Championnat de parties rapides FEFB | E125: =SUM(E126:E127) -> 550 | G125: =SUM(G126:G127) -> 550 | I125: =SUM(I126:I127) -> 550 | K125: =SUM(K126:K127) -> 400 | M125: =SUM(M126:M127) -> 0 | O125: =SUM(O126:O127) -> 270.44
C126: 308 | D126: Subsides au club organisateur | E126: 400 | G126: 400 | I126: 400 | K126: 400 | M126: 0 | O126: 200
C127: 308 | D127: Frais forfaitaires arbitrage (indemnités et frais de déplacement) | E127: 150 | G127: 150 | I127: 150 | K127: 0 | M127: 0 | O127: 70.44
C129: 3xx | D129: Autres subsides | E129: =SUM(E130:E139) -> 9800 | G129: =SUM(G130:G139) -> 8955 | I129: =SUM(I130:I139) -> 6654.12 | K129: =SUM(K130:K139) -> 9438 | M129: =SUM(M130:M139) -> 12313.35 | O129: =SUM(O130:O139) -> 8618
A130: 306 | B130: 604130 | C130: 306 | D130: Juniors : frais d'organisation de stages formation | E130: 1700 | G130: 1000 | I130: 1200.12 | K130: 3600 | M130: 0 | O130: 0 | Q130: "Elite" (900 Eur) Autres (500) Projets spécifiques (300)
A131: 304 | B131: 604190 | C131: 304 | D131: Juniors : soutiens individuels | E131: 2500 | G131: 3300 | I131: 3000 | K131: 2650 | M131: 250 | O131: 0
C132: 311 | D132: Juniors : Soutien financier par junior (base = rapport d'activités des clubs) | E132: 1000 | G132: 1170 | I132: 870 | K132: 350 | M132: 935 | O132: 950
A133: 305 | B133: 605700 | C133: 305 | D133: Seniors : subside(s) au(x) club(s) qualifié(s) pour la coupe d'Europe | E133: 1000 | G133: 0 | I133: 0 | K133: 0 | M133: 0 | O133: 2000
A134: 307 | B134: 605800 | C134: 307 | D134: Seniors : soutiens individuels | E134: 1000 | G134: 0 | I134: 0 | K134: 450 | M134: 0 | O134: 0
C135: 313 | D135: Subsides Tournois en ligne | E135: 0 | G135: 0 | K135: 0 | M135: 568.35
C136: 314 | D136: Subsides Projet formation | E136: 1000 | G136: 1400 | I136: 0 | K136: 600 | M136: 820
C137: 315 | D137: Subsides Licences G | E137: 1600 | G137: 1845 | I137: 1584 | K137: 1788 | M137: 0 | Q137: 132 en 2022-2023 (un peu moins que l'année précédente)
C138: 316 | D138: Subsides aux clubs | G138: 240 | Q138: Pour circonstances exceptionnelles
A139: 312 | C139: 312 | D139: Tous : subsides Covid | E139: 0 | G139: 0 | I139: 0 | K139: 0 | M139: 9740 | O139: 5668
D141: Projet "Echecs au féminin" | E141: =E142 -> 2000 | G141: =G142 -> 563.4 | I141: =I142 -> 0 | K141: =K142 -> 0 | M141: =M142 -> 0 | O141: =O142 -> 0 | Q141: Projet mais on ne sait pas encore très bien où l'on va
A142: 800 | B142: 710000 | C142: 904 | D142: A définir | E142: 2000 | G142: 563.4 | K142: 0 | M142: 0 | O142: 0 | Q142: Essentiellement Formation spécifiquement féminine
D144: UTILISATION DES SUBSIDES MINISTERIELS | E144: =SUM(E145:E149) -> 32500 | G144: =SUM(G145:G149) -> 27461.44 | I144: =SUM(I145:I149) -> 28624.05 | K144: =SUM(K145:K149) -> 30604.48 | M144: =SUM(M145:M145) -> 25511.4 | O144: =SUM(O145:O145) -> 24037.01
A145: 800 | B145: 604161 | C145: 800 | D145: Missions résultantes du décret campagnes promotionnelles | E145: 25000 | G145: 15186.08 | I145: 27372.06 | K145: 26595.38 | M145: 25511.4 | O145: 24037.01
C146: 802 | D146: Projet Spécial | E146: 5000 | G146: 5636.37
C147: 803 | D147: Projet Spécial 2 | E147: 0 | G147: 6209.44
C148: 801 | D148: Projet "Vive les Echecs" | E148: 2500 | G148: 429.55 | I148: 1251.99 | Q148: Festival Out of the books - Dépenses excédentaires
C149: 800 | D149: Perte à prendre en charge vu les prestations/livraisons réalisées avant notification | E149: 0 | G149: 0 | I149: 0 | K149: 4009.1
N152: 9
M170: 9
G185: 9
